fUST/lending_fUST_20250624
["ID","MTS","AMOUNT","RATE_DAILY","PERIOD"]
[367346712,1750758641098,-460.0,0.00019178,2]
[367346715,1750758641108,-460.0,0.00019178,2]
[367346718,1750758641118,-460.0,0.00019178,2]
[367346721,1750758641127,-460.0,0.00019178,2]
[367346724,1750758641137,-431.16236284,0.00019178,2]
[367346726,1750758641146,-1204.89,0.00019178,2]
[367346728,1750758641156,-856.83,0.00019178,2]
[367346730,1750758641165,-460.0,0.00019178,2]
[367346732,1750758641174,-460.0,0.00019178,2]
[367346734,1750758641184,-460.0,0.00019178,2]
[367346736,1750758641193,-460.0,0.00019178,2]
[367346738,1750758641202,-460.0,0.00019178,2]
[367346740,1750758641211,-460.0,0.00019178,2]
[367346742,1750758641220,-460.0,0.00019178,2]
[367346744,1750758641229,-500.0,0.00019178,2]
[367346746,1750758641238,-540.09833032,0.00019178,2]
[367346748,1750758641247,-500.0,0.00019178,2]
[367346750,1750758641256,-654.15,0.00019178,2]
[367346752,1750758641265,-460.0,0.00019178,2]
[367346754,1750758641274,-460.0,0.00019178,2]
[367346756,1750758641283,-460.0,0.00019178,2]
[367346758,1750758641292,-460.0,0.00019178,2]
[367346760,1750758641301,-500.0,0.00019178,2]
[367346762,1750758641310,-500.0,0.00019178,2]
[367346764,1750758641319,-500.0,0.00019178,2]
[367346766,1750758641329,-176.86,0.00019178,2]
[367346768,1750758641338,-460.0,0.00019178,2]
[367346770,1750758641347,-460.0,0.00019178,2]
[367346772,1750758641357,-460.0,0.00019178,2]
[367346774,1750758641366,-753.1,0.00019178,2]
[367346776,1750758641375,-460.0,0.00019178,2]
[367346778,1750758641385,-7038.97,0.00019178,2]
[367346780,1750758641394,-460.0,0.00019178,2]
[367346782,1750758641405,-460.0,0.00019178,2]
[367346784,1750758641414,-460.0,0.00019178,2]
[367346786,1750758641423,-667.88,0.00019178,2]
[367346788,1750758641433,-729.97,0.00019178,2]
[367346790,1750758641442,-460.0,0.00019178,2]
[367346792,1750758641452,-970.63,0.00019178,2]
[367346794,1750758641461,-877.19,0.00019178,2]
[367346797,1750758641471,-460.0,0.00019178,2]
[367346799,1750758641481,-460.0,0.00019178,2]
[367346801,1750758641492,-460.0,0.00019178,2]
[367346803,1750758641502,-460.0,0.00019178,2]
[367346805,1750758641511,-2048.8,0.00019178,2]
[367346807,1750758641521,-460.0,0.00019178,2]
[367346809,1750758641531,-460.0,0.00019178,2]
[367346812,1750758641551,-460.0,0.00019178,2]
[367346814,1750758641561,-567.1,0.00019178,2]
[367346816,1750758641571,-654.88,0.00019178,2]
[367346818,1750758641581,-792.63,0.00019178,2]
[367346820,1750758641591,-460.0,0.00019178,2]
[367346822,1750758641601,-743.77,0.00019178,2]
[367346824,1750758641612,-460.0,0.00019178,2]
[367346826,1750758641621,-460.0,0.00019178,2]
[367346828,1750758641631,-460.0,0.00019178,2]
[367346830,1750758641642,-460.0,0.00019178,2]
[367346832,1750758641651,-460.0,0.00019178,2]
[367346834,1750758641663,-460.0,0.00019178,2]
[367346836,1750758641673,-2427.85,0.00019178,2]
[367346838,1750758641683,-824.89,0.00019178,2]
[367346840,1750758641693,-460.0,0.00019178,2]
[367346843,1750758641702,-725.2,0.00019178,2]
[367346845,1750758641713,-460.0,0.00019178,2]
[367346847,1750758641724,-438.9860764,0.00019178,2]
[367346849,1750758641735,-460.0,0.00019178,2]
[367346851,1750758641745,-460.0,0.00019178,2]
[367346853,1750758641754,-460.0,0.00019178,2]
[367346855,1750758641764,-545.79,0.00019178,2]
[367346857,1750758641774,-460.0,0.00019178,2]
[367346859,1750758641783,-460.0,0.00019178,2]
[367346861,1750758641793,-460.0,0.00019178,2]
[367346863,1750758641803,-957.76,0.00019178,2]
[367346865,1750758641813,-460.0,0.00019178,2]
[367346867,1750758641823,-460.0,0.00019178,2]
[367346869,1750758641833,-455.10402577,0.00019178,2]
[367346871,1750758641842,-460.0,0.00019178,2]
[367346873,1750758641851,-2406.58,0.00019178,2]
[367346875,1750758641861,-460.0,0.00019178,2]
[367346877,1750758641871,-460.0,0.00019178,2]
[367346879,1750758641880,-1455.07,0.00019178,2]
[367346881,1750758641889,-460.0,0.00019178,2]
[367346883,1750758641899,-978.59,0.00019178,2]
[367346885,1750758641908,-460.0,0.00019178,2]
[367346887,1750758641918,-460.0,0.00019178,2]
[367346889,1750758641927,-460.0,0.00019178,2]
[367346891,1750758641937,-460.0,0.00019178,2]
[367346894,1750758641947,-460.0,0.00019178,2]
[367346895,1750758641957,-453.95275745,0.00019178,2]
[367346898,1750758641967,-460.0,0.00019178,2]
[367346900,1750758641977,-1036.42,0.00019178,2]
[367346902,1750758641987,-460.0,0.00019178,2]
[367346904,1750758641996,-460.0,0.00019178,2]
[367346906,1750758642006,-460.0,0.00019178,2]
[367346908,1750758642016,-460.0,0.00019178,2]
[367346910,1750758642026,-1860.68,0.00019178,2]
[367346912,1750758642035,-461.17,0.00019178,2]
[367346914,1750758642045,-460.0,0.00019178,2]
[367346916,1750758642055,-460.0,0.00019178,2]
[367346918,1750758642064,-151.0,0.00019178,2]
[367346920,1750758642074,-460.0,0.00019178,2]
[367346922,1750758642083,-151.0,0.00019178,2]
[367346924,1750758642093,-460.0,0.00019178,2]
[367346926,1750758642103,-460.0,0.00019178,2]
[367346928,1750758642113,-460.0,0.00019178,2]
[367346930,1750758642122,-177.24133,0.00019178,2]
[367346932,1750758642132,-562.0,0.00019205,2]
[367346934,1750758642142,-199.10625364,0.00019205,2]
[367346936,1750758642152,-500.0,0.00019205,2]
[367346938,1750758642161,-409.17326402,0.00019205,2]
[367346940,1750758642170,-261.61815622,0.00019205,2]
[367346942,1750758642180,-500.0,0.00019205,2]
[367346944,1750758642189,-510.29819206,0.00019205,2]
[367346946,1750758642198,-151.0,0.00019205,2]
[367346948,1750758642208,-562.0,0.00019233,2]
[367346950,1750758642219,-500.0,0.00019233,2]
[367346952,1750758642228,-158.39835402,0.00019233,2]
[367346954,1750758642237,-151.0,0.00019233,2]
[367346956,1750758642247,-562.0,0.0001926,2]
[367346958,1750758642256,-500.0,0.0001926,2]
[367346960,1750758642266,-151.0,0.0001926,2]
[367346962,1750758642275,-562.0,0.00019288,2]
[367346964,1750758642285,-524.55238754,0.00019288,2]
[367346966,1750758642294,-245.0,0.00019288,2]
[367346968,1750758642304,-562.0,0.00019315,2]
[367346970,1750758642314,-562.0,0.00019342,2]
[367346972,1750758642323,-176.14583465,0.00019352,2]
[367346974,1750758642332,-562.0,0.0001937,2]
[367346977,1750758642342,-562.0,0.00019397,2]
[367346979,1750758642352,-500.0,0.00019404,2]
[367346981,1750758642361,-562.0,0.00019425,2]
[367346983,1750758642370,-562.0,0.00019452,2]
[367346985,1750758642379,-460.0,0.00019452,2]
[367346987,1750758642388,-460.0,0.00019452,2]
[367346989,1750758642397,-451.20566503,0.00019452,2]
[367346991,1750758642407,-460.0,0.00019452,2]
[367346993,1750758642416,-460.0,0.00019452,2]
[367346995,1750758642425,-460.0,0.00019452,2]
[367346997,1750758642434,-460.0,0.00019452,2]
[367346999,1750758642443,-460.0,0.00019452,2]
[367347001,1750758642452,-572.81,0.00019452,2]
[367347003,1750758642461,-460.0,0.00019452,2]
[367347005,1750758642471,-465.77803353,0.00019452,2]
[367347007,1750758642481,-460.0,0.00019452,2]
[367347008,1750758642490,-501.92,0.00019452,2]
[367347010,1750758642500,-460.0,0.00019452,2]
[367347012,1750758642509,-460.0,0.00019452,2]
[367347014,1750758642519,-460.0,0.00019452,2]
[367347016,1750758642528,-460.0,0.00019452,2]
[367347018,1750758642538,-460.0,0.00019452,2]
[367347020,1750758642548,-460.0,0.00019452,2]
[367347022,1750758642558,-460.0,0.00019452,2]
[367347024,1750758642568,-460.0,0.00019452,2]
[367347026,1750758642577,-460.0,0.00019452,2]
[367347028,1750758642586,-460.0,0.00019452,2]
[367347030,1750758642596,-460.0,0.00019452,2]
[367347032,1750758642606,-447.90001521,0.00019452,2]
[367347034,1750758642615,-460.0,0.00019452,2]
[367347036,1750758642624,-671.28,0.00019452,2]
[367347038,1750758642634,-596.74297341,0.00019452,2]
[367347040,1750758642644,-460.0,0.00019452,2]
[367347042,1750758642654,-470.59504887,0.00019452,2]
[367347044,1750758642666,-460.0,0.00019452,2]
[367347046,1750758642675,-460.0,0.00019452,2]
[367347048,1750758642685,-460.0,0.00019452,2]
[367347050,1750758642694,-460.0,0.00019452,2]
[367347052,1750758642704,-460.0,0.00019452,2]
[367347054,1750758642714,-460.0,0.00019452,2]
[367347056,1750758642723,-460.0,0.00019452,2]
[367347058,1750758642733,-460.0,0.00019452,2]
[367347060,1750758642743,-460.0,0.00019452,2]
[367347062,1750758642753,-460.0,0.00019452,2]
[367347064,1750758642762,-460.0,0.00019452,2]
[367347066,1750758642771,-460.0,0.00019452,2]
[367347068,1750758642781,-460.0,0.00019452,2]
[367347070,1750758642791,-1241.58,0.00019452,2]
[367347072,1750758642800,-460.0,0.00019452,2]
[367347074,1750758642810,-460.0,0.00019452,2]
[367347076,1750758642821,-460.0,0.00019452,2]
[367347078,1750758642831,-460.0,0.00019452,2]
[367347080,1750758642842,-519.66,0.00019452,2]
[367347082,1750758642851,-460.0,0.00019452,2]
[367347084,1750758642861,-460.0,0.00019452,2]
[367347086,1750758642870,-460.0,0.00019452,2]
[367347088,1750758642880,-460.0,0.00019452,2]
[367347090,1750758642889,-460.0,0.00019452,2]
[367347092,1750758642899,-460.0,0.00019452,2]
[367347094,1750758642909,-460.0,0.00019452,2]
[367347096,1750758642918,-460.0,0.00019452,2]
[367347098,1750758642928,-460.0,0.00019452,2]
[367347100,1750758642937,-500.0,0.00019452,2]
[367347102,1750758642947,-828.86,0.00019452,2]
[367347104,1750758642957,-460.0,0.00019452,2]
[367347106,1750758642968,-460.0,0.00019452,2]
[367347108,1750758642977,-460.0,0.00019452,2]
[367347110,1750758642987,-321.01943641,0.00019452,2]
[367347112,1750758642996,-508.98148759,0.00019452,2]
[367347114,1750758643006,-460.0,0.00019452,2]
[367347116,1750758643015,-460.0,0.00019452,2]
[367347118,1750758643026,-460.0,0.00019452,2]
[367347120,1750758643035,-460.0,0.00019452,2]
[367347122,1750758643045,-1268.97,0.00019452,2]
[367347124,1750758643054,-460.0,0.00019452,2]
[367347125,1750758643064,-460.0,0.00019452,2]
[367347127,1750758643073,-3741.09,0.00019452,2]
[367347129,1750758643083,-460.0,0.00019452,2]
[367347131,1750758643092,-453.20556377,0.00019452,2]
[367347133,1750758643102,-460.0,0.00019452,2]
[367347135,1750758643111,-460.0,0.00019452,2]
[367347137,1750758643120,-571.37,0.00019452,2]
[367347139,1750758643130,-460.0,0.00019452,2]
[367347141,1750758643139,-460.0,0.00019452,2]
[367347143,1750758643149,-460.0,0.00019452,2]
[367347145,1750758643158,-563.92096638,0.00019452,2]
[367347147,1750758643167,-460.0,0.00019452,2]
[367347149,1750758643176,-460.0,0.00019452,2]
[367347151,1750758643186,-460.0,0.00019452,2]
[367347153,1750758643195,-460.0,0.00019452,2]
[367347155,1750758643205,-281.75323977,0.00019452,2]
[367347157,1750758643214,-460.0,0.00019452,2]
[367347159,1750758643224,-460.0,0.00019452,2]
[367347162,1750758643233,-295.42348183,0.00019452,2]
[367347164,1750758643243,-3206.19,0.00019452,2]
[367347167,1750758643253,-460.0,0.00019452,2]
[367347169,1750758643262,-3172.49,0.00019452,2]
[367347171,1750758643272,-2041.96,0.00019452,2]
[367347173,1750758643281,-460.0,0.00019452,2]
[367347175,1750758643290,-460.0,0.00019452,2]
[367347177,1750758643299,-460.0,0.00019452,2]
[367347179,1750758643309,-826.01,0.00019452,2]
[367347181,1750758643318,-460.0,0.00019452,2]
[367347183,1750758643331,-1322.08,0.00019452,2]
[367347185,1750758643341,-486.03,0.00019452,2]
[367347187,1750758643350,-460.0,0.00019452,2]
[367347189,1750758643360,-460.0,0.00019452,2]
[367347191,1750758643369,-556.91494727,0.00019452,2]
[367347193,1750758643379,-597.25,0.00019452,2]
[367347195,1750758643390,-741.0,0.00019452,2]
[367347197,1750758643399,-460.0,0.00019452,2]
[367347199,1750758643409,-460.0,0.00019452,2]
[367347201,1750758643419,-460.0,0.00019452,2]
[367347203,1750758643430,-460.0,0.00019452,2]
[367347205,1750758643439,-460.0,0.00019452,2]
[367347207,1750758643448,-1820.89,0.00019452,2]
[367347209,1750758643458,-460.0,0.00019452,2]
[367347211,1750758643467,-460.0,0.00019452,2]
[367347213,1750758643477,-460.0,0.00019452,2]
[367347215,1750758643486,-460.0,0.00019452,2]
[367347217,1750758643496,-548.95398249,0.00019452,2]
[367347219,1750758643505,-596.38,0.00019452,2]
[367347221,1750758643515,-460.0,0.00019452,2]
[367347223,1750758643525,-460.0,0.00019452,2]
[367347225,1750758643535,-460.0,0.00019452,2]
[367347227,1750758643545,-460.0,0.00019452,2]
[367347229,1750758643555,-2393.21,0.00019452,2]
[367347231,1750758643564,-2176.1,0.00019452,2]
[367347233,1750758643574,-460.0,0.00019452,2]
[367347235,1750758643583,-554.63,0.00019452,2]
[367347237,1750758643593,-460.0,0.00019452,2]
[367347239,1750758643603,-1530.51,0.00019452,2]
[367347241,1750758643612,-460.0,0.00019452,2]
[367347243,1750758643622,-460.0,0.00019452,2]
[367347245,1750758643633,-460.0,0.00019452,2]
[367347247,1750758643644,-460.0,0.00019452,2]
[367347249,1750758643655,-460.0,0.00019452,2]
[367347251,1750758643665,-460.0,0.00019452,2]
[367347253,1750758643674,-460.0,0.00019452,2]
[367347255,1750758643685,-460.0,0.00019452,2]
[367347257,1750758643694,-1204.89,0.00019452,2]
[367347259,1750758643703,-856.83,0.00019452,2]
[367347261,1750758643713,-460.0,0.00019452,2]
[367347263,1750758643724,-460.0,0.00019452,2]
[367347265,1750758643734,-460.0,0.00019452,2]
[367347267,1750758643743,-460.0,0.00019452,2]
[367347269,1750758643753,-460.0,0.00019452,2]
[367347270,1750758643762,-654.15,0.00019452,2]
[367347271,1750758643770,-460.0,0.00019452,2]
[367347272,1750758643780,-460.0,0.00019452,2]
[367347273,1750758643789,-460.0,0.00019452,2]
[367347276,1750758643983,-460.0,0.00019452,2]
[367347278,1750758643993,-460.0,0.00019452,2]
[367347280,1750758644003,-753.1,0.00019452,2]
[367347282,1750758644013,-7038.97,0.00019452,2]
[367347284,1750758644022,-460.0,0.00019452,2]
[367347286,1750758644032,-460.0,0.00019452,2]
[367347288,1750758644041,-667.88,0.00019452,2]
[367347290,1750758644050,-729.97,0.00019452,2]
[367347292,1750758644060,-970.63,0.00019452,2]
[367347294,1750758644071,-877.19,0.00019452,2]
[367347296,1750758644081,-460.0,0.00019452,2]
[367347298,1750758644090,-460.0,0.00019452,2]
[367347300,1750758644099,-460.0,0.00019452,2]
[367347302,1750758644108,-460.0,0.00019452,2]
[367347304,1750758644118,-2048.8,0.00019452,2]
[367347306,1750758644127,-460.0,0.00019452,2]
[367347308,1750758644136,-460.0,0.00019452,2]
[367347310,1750758644145,-567.1,0.00019452,2]
[367347312,1750758644155,-792.63,0.00019452,2]
[367347314,1750758644165,-654.88,0.00019452,2]
[367347316,1750758644175,-460.0,0.00019452,2]
[367347318,1750758644185,-743.77,0.00019452,2]
[367347320,1750758644194,-460.0,0.00019452,2]
[367347322,1750758644204,-460.0,0.00019452,2]
[367347324,1750758644214,-2427.85,0.00019452,2]
[367347326,1750758644224,-460.0,0.00019452,2]
[367347328,1750758644233,-824.89,0.00019452,2]
[367347330,1750758644242,-478.89,0.00019452,2]
[367347332,1750758644252,-725.2,0.00019452,2]
[367347334,1750758644261,-460.0,0.00019452,2]
[367347336,1750758644270,-460.0,0.00019452,2]
[367347338,1750758644279,-460.0,0.00019452,2]
[367347340,1750758644289,-460.0,0.00019452,2]
[367347342,1750758644298,-460.0,0.00019452,2]
[367347344,1750758644307,-460.0,0.00019452,2]
[367347346,1750758644316,-460.0,0.00019452,2]
[367347348,1750758644326,-957.76,0.00019452,2]
[367347350,1750758644335,-460.0,0.00019452,2]
[367347352,1750758644345,-460.0,0.00019452,2]
[367347354,1750758644354,-460.0,0.00019452,2]
[367347356,1750758644363,-2406.58,0.00019452,2]
[367347358,1750758644373,-487.22617593,0.00019452,2]
[367347360,1750758644382,-1455.07,0.00019452,2]
[367347362,1750758644392,-589.0332452,0.00019452,2]
[367347364,1750758644402,-978.59,0.00019452,2]
[367347366,1750758644411,-460.0,0.00019452,2]
[367347368,1750758644420,-460.0,0.00019452,2]
[367347370,1750758644429,-546.86903497,0.00019452,2]
[367347372,1750758644439,-460.0,0.00019452,2]
[367347374,1750758644449,-460.0,0.00019452,2]
[367347376,1750758644458,-460.0,0.00019452,2]
[367347378,1750758644467,-1036.42,0.00019452,2]
[367347380,1750758644477,-460.0,0.00019452,2]
[367347382,1750758644486,-460.0,0.00019452,2]
[367347384,1750758644495,-460.0,0.00019452,2]
[367347386,1750758644504,-1860.68,0.00019452,2]
[367347388,1750758644513,-461.17,0.00019452,2]
[367347390,1750758644522,-460.0,0.00019452,2]
[367347392,1750758644531,-460.0,0.00019452,2]
[367347394,1750758644540,-460.0,0.00019452,2]
[367347396,1750758644550,-460.0,0.00019452,2]
[367347398,1750758644560,-460.0,0.00019452,2]
[367347400,1750758644569,-460.0,0.00019452,2]
[367347402,1750758644578,-562.0,0.00019479,2]
[367347404,1750758644587,-562.0,0.00019507,2]
[367347406,1750758644596,-1628.61905886,0.00019519,2]
[367347408,1750758644606,-562.0,0.00019534,2]
[367347410,1750758644615,-562.0,0.00019562,2]
[367347412,1750758644625,-562.0,0.00019589,2]
[367347414,1750758644634,-562.0,0.00019616,2]
[367347416,1750758644646,-562.0,0.00019644,2]
[367347418,1750758644655,-562.0,0.00019671,2]
[367347420,1750758644665,-562.0,0.00019699,2]
[367347422,1750758644676,-460.0,0.000197,2]
[367347424,1750758644686,-460.0,0.000197,2]
[367347426,1750758644695,-460.0,0.000197,2]
[367347428,1750758644705,-460.0,0.000197,2]
[367347430,1750758644714,-460.0,0.000197,2]
[367347432,1750758644724,-460.0,0.000197,2]
[367347434,1750758644734,-460.0,0.000197,2]
[367347436,1750758644744,-460.0,0.000197,2]
[367347438,1750758644754,-460.0,0.000197,2]
[367347440,1750758644764,-460.0,0.000197,2]
[367347442,1750758644773,-460.0,0.000197,2]
[367347445,1750758644783,-460.0,0.000197,2]
[367347446,1750758644793,-460.0,0.000197,2]
[367347449,1750758644803,-460.0,0.000197,2]
[367347451,1750758644813,-460.0,0.000197,2]
[367347453,1750758644823,-460.0,0.000197,2]
[367347455,1750758644833,-460.0,0.000197,2]
[367347457,1750758644843,-460.0,0.000197,2]
[367347459,1750758644852,-190.32,0.000197,2]
[367347460,1750758644861,-562.0,0.00019726,2]
[367347463,1750758644871,-460.0,0.00019726,2]
[367347465,1750758644880,-460.0,0.00019726,2]
[367347467,1750758644889,-460.0,0.00019726,2]
[367347469,1750758644899,-588.33,0.00019726,2]
[367347471,1750758644908,-449.57793822,0.00019726,2]
[367347472,1750758644918,-460.0,0.00019726,2]
[367347474,1750758644927,-572.81,0.00019726,2]
[367347477,1750758644937,-460.0,0.00019726,2]
[367347479,1750758644947,-460.0,0.00019726,2]
[367347480,1750758644957,-501.92,0.00019726,2]
[367347482,1750758644966,-460.0,0.00019726,2]
[367347484,1750758644975,-460.0,0.00019726,2]
[367347486,1750758644985,-460.0,0.00019726,2]
[367347489,1750758644994,-460.0,0.00019726,2]
[367347491,1750758645005,-460.0,0.00019726,2]
[367347493,1750758645014,-460.0,0.00019726,2]
[367347495,1750758645024,-460.0,0.00019726,2]
[367347497,1750758645033,-460.0,0.00019726,2]
[367347499,1750758645042,-460.0,0.00019726,2]
[367347501,1750758645052,-460.0,0.00019726,2]
[367347503,1750758645062,-460.0,0.00019726,2]
[367347505,1750758645071,-671.28,0.00019726,2]
[367347507,1750758645081,-460.0,0.00019726,2]
[367347509,1750758645091,-460.0,0.00019726,2]
[367347511,1750758645101,-460.0,0.00019726,2]
[367347513,1750758645110,-460.0,0.00019726,2]
[367347515,1750758645119,-460.0,0.00019726,2]
[367347517,1750758645129,-460.0,0.00019726,2]
[367347519,1750758645138,-460.0,0.00019726,2]
[367347521,1750758645148,-460.0,0.00019726,2]
[367347523,1750758645157,-460.0,0.00019726,2]
[367347525,1750758645168,-454.74908266,0.00019726,2]
[367347527,1750758645177,-460.0,0.00019726,2]
[367347529,1750758645186,-600.0,0.00019726,2]
[367347531,1750758645195,-460.0,0.00019726,2]
[367347533,1750758645205,-460.0,0.00019726,2]
[367347535,1750758645214,-1241.58,0.00019726,2]
[367347537,1750758645224,-460.0,0.00019726,2]
[367347539,1750758645234,-460.0,0.00019726,2]
[367347541,1750758645243,-460.0,0.00019726,2]
[367347543,1750758645252,-460.0,0.00019726,2]
[367347545,1750758645262,-519.66,0.00019726,2]
[367347547,1750758645271,-460.0,0.00019726,2]
[367347549,1750758645280,-460.0,0.00019726,2]
[367347551,1750758645289,-460.0,0.00019726,2]
[367347553,1750758645299,-460.0,0.00019726,2]
[367347554,1750758645308,-526.94286958,0.00019726,2]
[367347556,1750758645318,-460.0,0.00019726,2]
[367347558,1750758645327,-460.0,0.00019726,2]
[367347560,1750758645337,-460.0,0.00019726,2]
[367347562,1750758645346,-261.21971899,0.00019726,2]
[367347565,1750758645356,-828.86,0.00019726,2]
[367347566,1750758645366,-460.0,0.00019726,2]
[367347569,1750758645376,-460.0,0.00019726,2]
[367347571,1750758645386,-460.0,0.00019726,2]
[367347572,1750758645395,-460.0,0.00019726,2]
[367347574,1750758645405,-460.0,0.00019726,2]
[367347576,1750758645414,-460.0,0.00019726,2]
[367347578,1750758645423,-1268.97,0.00019726,2]
[367347580,1750758645432,-460.0,0.00019726,2]
[367347582,1750758645441,-460.0,0.00019726,2]
[367347584,1750758645450,-3741.09,0.00019726,2]
[367347587,1750758645459,-460.0,0.00019726,2]
[367347589,1750758645468,-460.0,0.00019726,2]
[367347591,1750758645478,-460.0,0.00019726,2]
[367347593,1750758645487,-436.68493286,0.00019726,2]
[367347595,1750758645496,-460.0,0.00019726,2]
[367347598,1750758645505,-460.0,0.00019726,2]
[367347600,1750758645515,-460.0,0.00019726,2]
[367347602,1750758645524,-460.0,0.00019726,2]
[367347604,1750758645533,-460.0,0.00019726,2]
[367347606,1750758645543,-460.0,0.00019726,2]
[367347608,1750758645552,-460.0,0.00019726,2]
[367347610,1750758645561,-460.0,0.00019726,2]
[367347612,1750758645570,-3206.19,0.00019726,2]
[367347614,1750758645579,-460.0,0.00019726,2]
[367347616,1750758645588,-3172.49,0.00019726,2]
[367347618,1750758645597,-2041.96,0.00019726,2]
[367347620,1750758645606,-460.0,0.00019726,2]
[367347622,1750758645615,-460.0,0.00019726,2]
[367347624,1750758645625,-826.01,0.00019726,2]
[367347626,1750758645634,-460.0,0.00019726,2]
[367347628,1750758645644,-460.0,0.00019726,2]
[367347630,1750758645654,-1322.08,0.00019726,2]
[367347632,1750758645663,-486.03,0.00019726,2]
[367347634,1750758645673,-460.0,0.00019726,2]
[367347636,1750758645683,-460.0,0.00019726,2]
[367347638,1750758645693,-741.0,0.00019726,2]
[367347640,1750758645702,-460.0,0.00019726,2]
[367347642,1750758645713,-460.0,0.00019726,2]
[367347644,1750758645723,-460.0,0.00019726,2]
[367347646,1750758645733,-460.0,0.00019726,2]
[367347648,1750758645742,-1820.89,0.00019726,2]
[367347650,1750758645752,-460.0,0.00019726,2]
[367347652,1750758645761,-460.0,0.00019726,2]
[367347654,1750758645771,-460.0,0.00019726,2]
[367347656,1750758645780,-460.0,0.00019726,2]
[367347658,1750758645789,-460.0,0.00019726,2]
[367347660,1750758645798,-460.0,0.00019726,2]
[367347662,1750758645807,-460.0,0.00019726,2]
[367347664,1750758645816,-460.0,0.00019726,2]
[367347666,1750758645826,-2393.21,0.00019726,2]
[367347668,1750758645836,-2176.1,0.00019726,2]
[367347670,1750758645846,-460.0,0.00019726,2]
[367347672,1750758645854,-554.63,0.00019726,2]
[367347674,1750758645864,-460.0,0.00019726,2]
[367347676,1750758645873,-1530.51,0.00019726,2]
[367347678,1750758645883,-460.0,0.00019726,2]
[367347680,1750758645893,-460.0,0.00019726,2]
[367347682,1750758645903,-460.0,0.00019726,2]
[367347684,1750758645912,-460.0,0.00019726,2]
[367347686,1750758645921,-460.0,0.00019726,2]
[367347688,1750758645931,-460.0,0.00019726,2]
[367347690,1750758645940,-460.0,0.00019726,2]
[367347692,1750758645950,-1204.89,0.00019726,2]
[367347694,1750758645959,-856.83,0.00019726,2]
[367347696,1750758645968,-460.0,0.00019726,2]
[367347698,1750758645978,-460.0,0.00019726,2]
[367347700,1750758645988,-460.0,0.00019726,2]
[367347702,1750758645997,-460.0,0.00019726,2]
[367347704,1750758646007,-460.0,0.00019726,2]
[367347707,1750758646016,-654.15,0.00019726,2]
[367347709,1750758646025,-460.0,0.00019726,2]
[367347711,1750758646034,-460.0,0.00019726,2]
[367347713,1750758646044,-460.0,0.00019726,2]
[367347715,1750758646053,-460.0,0.00019726,2]
[367347717,1750758646062,-753.1,0.00019726,2]
[367347719,1750758646072,-7038.97,0.00019726,2]